fUSD/lending_fUSD_20240614
["ID","MTS","AMOUNT","RATE_DAILY","PERIOD"]
[329460494,1718377879287,-527.67582109,0.00024109,3]
[329460495,1718377879299,-500.0,0.00024109,3]
[329460496,1718377879327,-500.0,0.00024109,3]
[329460497,1718377879360,-919.49,0.00024109,3]
[329460498,1718377879377,-922.61,0.00024109,3]
[329460499,1718377879392,-500.0,0.00024109,3]
[329460500,1718377879410,-500.0,0.00024109,3]
[329460501,1718377879427,-500.0,0.00024109,3]
[329460502,1718377879469,-500.0,0.00024109,3]
[329460503,1718377879543,-524.5320669,0.00024109,3]
[329460504,1718377879565,-500.0,0.00024109,3]
[329460505,1718377879578,-2359.82,0.00024109,3]
[329460506,1718377879593,-1138.0,0.00024109,3]
[329460507,1718377879605,-1638.54,0.00024109,3]
[329460508,1718377879617,-500.0,0.00024109,3]
[329460509,1718377879645,-500.0,0.00024109,3]
[329460510,1718377879674,-503.26,0.00024109,3]
[329460511,1718377879697,-874.1,0.00024109,3]
[329460512,1718377879734,-500.0,0.00024109,3]
[329460513,1718377879778,-409.17783833,0.00024109,3]
[329460514,1718377879816,-1039.31,0.00024109,3]
[329460515,1718377879852,-500.0,0.00024109,3]
[329460516,1718377879894,-500.0,0.00024109,3]
[329460517,1718377879908,-941.9,0.00024109,3]
[329460518,1718377879928,-500.0,0.00024109,3]
[329460519,1718377879950,-1784.82,0.00024109,3]
[329460520,1718377879973,-500.0,0.00024109,3]
[329460521,1718377879996,-500.0,0.00024109,3]
[329460522,1718377880008,-885.51,0.00024109,3]
[329460523,1718377880023,-500.0,0.00024109,3]
[329460524,1718377880036,-962.23,0.00024109,3]
[329460525,1718377880048,-1473.17,0.00024109,3]
[329460526,1718377880060,-545.52,0.00024109,3]
[329460527,1718377880079,-669.29,0.00024109,3]
[329460528,1718377880100,-2938.35,0.00024109,3]
[329460529,1718377880128,-1098.01,0.00024109,3]
[329460530,1718377880157,-500.0,0.00024109,3]
[329460531,1718377880194,-505.83683547,0.00024109,3]
[329460532,1718377880221,-500.0,0.00024109,3]
[329460533,1718377880234,-547.26,0.00024109,3]
[329460534,1718377880264,-1489.06,0.00024109,3]
[329460535,1718377880279,-1657.31,0.00024109,3]
[329460536,1718377880292,-619.3,0.00024109,3]
[329460537,1718377880319,-500.0,0.00024109,3]
[329460538,1718377880336,-500.0,0.00024109,3]
[329460539,1718377880353,-500.0,0.00024109,3]
[329460540,1718377880373,-2623.97,0.00024109,3]
[329460541,1718377880386,-200.54885542,0.00024109,3]
[329460542,1718377880404,-500.0,0.00024109,3]
[329460543,1718377880434,-500.0,0.00024109,3]
[329460544,1718377880457,-500.0,0.00024109,3]
[329460545,1718377880477,-500.0,0.00024109,3]
[329460546,1718377880499,-306.52993256,0.00024109,3]
[329460547,1718377880543,-929.59,0.00024109,3]
[329460548,1718377880563,-500.0,0.00024109,3]
[329460549,1718377880586,-500.0,0.00024109,3]
[329460550,1718377880617,-500.0,0.00024109,3]
[329460551,1718377880642,-849.01,0.00024109,3]
[329460552,1718377880666,-647.4,0.00024109,3]
[329460553,1718377880694,-3052.94,0.00024109,3]
[329460554,1718377880714,-500.0,0.00024109,3]
[329460555,1718377880729,-500.0,0.00024109,3]
[329460556,1718377880759,-500.0,0.00024109,3]
[329460557,1718377880780,-500.0,0.00024109,3]
[329460558,1718377880807,-1033.79,0.00024109,3]
[329460559,1718377880820,-500.0,0.00024109,3]
[329460560,1718377880851,-4428.96,0.00024109,3]
[329460561,1718377880865,-1507.71,0.00024109,3]
[329460562,1718377880909,-847.81,0.00024109,3]
[329460563,1718377880922,-500.0,0.00024109,3]
[329460564,1718377880933,-500.0,0.00024109,3]
[329460565,1718377880944,-500.0,0.00024109,3]
[329460566,1718377880978,-500.0,0.00024109,3]
[329460567,1718377880992,-500.0,0.00024109,3]
[329460568,1718377881019,-773.17,0.00024109,3]
[329460569,1718377881050,-627.94,0.00024109,3]
[329460570,1718377881072,-500.0,0.00024109,3]
[329460571,1718377881108,-500.0,0.00024109,3]
[329460572,1718377881123,-1990.87,0.00024109,3]
[329460573,1718377881143,-500.0,0.00024109,3]
[329460574,1718377881172,-500.0,0.00024109,3]
[329460575,1718377881196,-4812.6,0.00024109,3]
[329460576,1718377881213,-500.0,0.00024109,3]
[329460577,1718377881233,-2317.62,0.00024109,3]
[329460578,1718377881246,-951.55,0.00024109,3]
[329460579,1718377881265,-500.0,0.00024109,3]
[329460580,1718377881292,-526.79,0.00024109,3]
[329460581,1718377881304,-500.0,0.00024109,3]
[329460582,1718377881336,-1670.2,0.00024109,3]
[329460583,1718377881361,-500.0,0.00024109,3]
[329460584,1718377881373,-500.0,0.00024109,3]
[329460585,1718377881385,-512.79624197,0.00024109,3]
[329460586,1718377881416,-500.0,0.00024109,3]
[329460587,1718377881428,-1177.32,0.00024109,3]
[329460588,1718377881458,-458.26357601,0.00024109,3]
[329460589,1718377881472,-721.74,0.00024109,3]
[329460590,1718377881486,-512.39109031,0.00024109,3]
[329460591,1718377881500,-1426.8,0.00024109,3]
[329460592,1718377881565,-942.17,0.00024109,3]
[329460593,1718377881578,-500.0,0.00024109,3]
[329460594,1718377881594,-500.0,0.00024109,3]
[329460595,1718377881606,-1846.76,0.00024109,3]
[329460596,1718377881623,-1305.25,0.00024109,3]
[329460597,1718377881640,-500.0,0.00024109,3]
[329460598,1718377881668,-500.0,0.00024109,3]
[329460599,1718377881689,-500.0,0.00024109,3]
[329460600,1718377881733,-500.0,0.00024109,3]
[329460601,1718377881743,-500.0,0.00024109,3]
[329460602,1718377881767,-759.38,0.00024109,3]
[329460603,1718377881778,-1413.18,0.00024109,3]
[329460604,1718377881789,-655.88,0.00024109,3]
[329460605,1718377881802,-500.0,0.00024109,3]
[329460606,1718377881840,-500.0,0.00024109,3]
[329460607,1718377881852,-900.02,0.00024109,3]
[329460608,1718377881868,-500.0,0.00024109,3]
[329460609,1718377881879,-2820.55,0.00024109,3]
[329460610,1718377881892,-874.05,0.00024109,3]
[329460611,1718377881904,-632.75,0.00024109,3]
[329460612,1718377881919,-500.0,0.00024109,3]
[329460613,1718377881932,-500.0,0.00024109,3]
[329460614,1718377881942,-500.0,0.00024109,3]
[329460615,1718377881953,-3552.97,0.00024109,3]
[329460616,1718377881964,-534.49,0.00024109,3]
[329460617,1718377881976,-526.44872734,0.00024109,3]
[329460618,1718377881987,-500.0,0.00024109,3]
[329460619,1718377881998,-762.78,0.00024109,3]
[329460620,1718377882009,-1011.88,0.00024109,3]
[329460621,1718377882029,-500.0,0.00024109,3]
[329460622,1718377882040,-1350.39,0.00024109,3]
[329460623,1718377882063,-500.0,0.00024109,3]
[329460624,1718377882074,-713.38,0.00024109,3]
[329460625,1718377882086,-665.53,0.00024109,3]
[329460626,1718377882100,-660.94,0.00024109,3]
[329460627,1718377882113,-500.0,0.00024109,3]
[329460628,1718377882134,-500.0,0.00024109,3]
[329460629,1718377882146,-2086.8,0.00024109,3]
[329460630,1718377882158,-732.01,0.00024109,3]
[329460631,1718377882209,-1025.68,0.00024109,3]
[329460632,1718377882221,-500.0,0.00024109,3]
[329460633,1718377882235,-985.77,0.00024109,3]
[329460634,1718377882248,-500.0,0.00024109,3]
[329460635,1718377882260,-500.0,0.00024109,3]
[329460636,1718377882477,-819.08,0.00024109,3]
[329460637,1718377882495,-980.26,0.00024109,3]
[329460638,1718377882518,-506.11143601,0.00024109,3]
[329460639,1718377882530,-500.0,0.00024109,3]
[329460640,1718377882580,-500.0,0.00024109,3]
[329460641,1718377882596,-500.0,0.00024109,3]
[329460642,1718377882607,-500.0,0.00024109,3]
[329460643,1718377882628,-500.0,0.00024109,3]
[329460644,1718377882675,-1327.75,0.00024109,3]
[329460645,1718377882717,-500.0,0.00024109,3]
[329460646,1718377882738,-378.30003513,0.00024109,3]
[329460647,1718377883655,-121.69996487,0.00024109,3]
[329460648,1718377883680,-145.21860316,0.00024109,3]
[329460649,1718377883696,-863.90139684,0.00024109,3]
[329460650,1718377883710,-500.0,0.00024109,3]
[329460651,1718377883722,-2395.94,0.00024109,3]
[329460652,1718377883737,-500.0,0.00024109,3]
[329460653,1718377883764,-341.11599234,0.00024109,3]
[329460654,1718377883822,-500.0,0.00024109,3]
[329460655,1718377883835,-3151.95,0.00024109,3]
[329460656,1718377883856,-500.0,0.00024109,3]
[329460657,1718377883874,-1346.86,0.00024109,3]
[329460658,1718377883891,-2671.95,0.00024109,3]
[329460659,1718377883902,-721.49,0.00024109,3]
[329460660,1718377883933,-500.0,0.00024109,3]
[329460661,1718377883960,-849.39,0.00024109,3]
[329460662,1718377883975,-500.0,0.00024109,3]
[329460663,1718377883987,-500.0,0.00024109,3]
[329460664,1718377884004,-668.27,0.00024109,3]
[329460665,1718377884017,-1170.44,0.00024109,3]
[329460666,1718377884028,-500.0,0.00024109,3]
[329460667,1718377884043,-513.59217793,0.00024109,3]
[329460668,1718377884059,-531.05671434,0.00024109,3]
[329460669,1718377884072,-3549.24,0.00024109,3]
[329460670,1718377884116,-150.0,0.00024118,2]
[329460671,1718377884140,-1500.0,0.00024134,2]
[329460672,1718377884151,-153.16616082,0.00024163,2]
[329460673,1718377884164,-1055.75721339,0.00024164,2]
[329460674,1718377884208,-155.36078111,0.00024164,2]
[329460675,1718377884233,-364.79601266,0.00024176,2]
[329460676,1718377884265,-150.0,0.00024176,2]
[329460677,1718377884324,-166.66666666,0.00024189,2]
[329460678,1718377884337,-150.0,0.00024199,2]
[329460679,1718377884350,-150.0,0.00024207,2]
[329460680,1718377884381,-5821.07123391,0.0002422,2]
[329460681,1718377884405,-2560.27,0.0002422,2]
[329460682,1718377884423,-71407.45358016,0.0002422,2]
[329460683,1718377884508,-540.18000005,0.0002422,2]
[329460684,1718377884553,-3251.45539745,0.0002422,2]
[329460685,1718377884589,-1714.13792159,0.0002422,2]
[329460686,1718377884616,-2917.73487043,0.0002422,2]
[329460687,1718377884632,-3602.21195516,0.0002422,2]
[329460688,1718377884684,-4128.63986883,0.0002422,2]
[329460689,1718377884700,-3933.36463944,0.0002422,2]
[329460690,1718377884718,-4432.26839026,0.0002422,2]
[329460691,1718377884761,-6757.96750055,0.0002422,2]
[329460692,1718377884812,-39335.07785512,0.0002422,2]
[329460693,1718377884827,-1617.592005,0.0002422,2]
[329460694,1718377884842,-1212.68834929,0.0002422,2]
[329460695,1718377884874,-1872.404,0.0002422,2]
[329460696,1718377885610,-270.43945448,0.00024109,3]
[329460697,1718377885648,-229.56054552,0.00024109,3]
[329460698,1718377885661,-1255.55032513,0.0002422,2]
[329460699,1718377885701,-215052.29482974,0.0002422,2]
[329460700,1718377885766,-560.75311709,0.0002422,2]
[329460701,1718377885796,-52765.96554555,0.0002422,2]
[329460702,1718377885824,-767.54261322,0.0002422,2]
[329460703,1718377885873,-728.05842579,0.0002422,2]
[329460704,1718377885903,-861.78488582,0.0002422,2]
[329460705,1718377885933,-3512.54571817,0.0002422,2]
[329460726,1718379035602,-258.31960914,0.00010222,2]
[329460727,1718379035621,-0.78039086,0.00010223,2]
[329460728,1718379035635,-178.67308877,0.00010223,2]
[329460729,1718379035673,-108.70029625,0.00010321,2]
[329460730,1718379035703,-517.92418891,0.00010321,2]
[329460731,1718379035736,-2372.39308394,0.00010322,2]
[329460732,1718379035751,-1303.00649786,0.00010356,2]
[329460733,1718379035781,-316.38392431,0.00010356,2]
[329460734,1718379035804,-179.45347962,0.00010801,2]
[329460735,1718379035823,-158.73126334,0.00010803,2]
[329460736,1718379035838,-436.8844913,0.00010891,2]
[329460737,1718379035857,-150.0,0.00010892,2]
[329460738,1718379035877,-5201.70470985,0.00010893,2]
[329460739,1718379035892,-157.53992812,0.00010901,2]
[329460740,1718379035904,-203.22397097,0.00010901,2]
[329460741,1718379035935,-155.0,0.00010901,2]
[329460742,1718379035948,-186.93607384,0.00010901,2]
[329460743,1718379035983,-580.36491658,0.00010901,2]
[329460744,1718379036017,-183.41844134,0.00010901,2]
[329460745,1718379036041,-437.68428679,0.00010901,2]
[329460746,1718379036058,-2216.62017205,0.00010901,2]
[329460747,1718379036087,-238.00335402,0.00010901,2]
[329460748,1718379036102,-275.7718618,0.00010901,2]
[329460749,1718379036136,-1276.54298382,0.00010901,2]
[329460750,1718379036156,-691.13880026,0.00010901,2]
[329460751,1718379036172,-5071.7116379,0.00010901,2]
[329460752,1718379036186,-382.96500773,0.00010901,2]
[329460753,1718379036201,-1515.97596609,0.00010901,2]
[329460754,1718379036222,-198.65538205,0.00010901,2]
[329460755,1718379036248,-286.66632107,0.00010901,2]
[329460756,1718379036259,-459.76307827,0.00010901,2]
[329460757,1718379036271,-542.00347646,0.00010901,2]
[329460758,1718379036296,-162.49238413,0.00010902,2]
[329460759,1718379036313,-3053.96397174,0.00010902,2]
[329460760,1718379036328,-233.31171072,0.00010902,2]
[329460761,1718379036341,-3020.91253214,0.00010902,2]
[329460762,1718379036354,-499.99,0.00010902,2]
[329460763,1718379036365,-3376.79,0.00010902,2]
[329460764,1718379036393,-181.27844565,0.00010903,2]
[329460765,1718379036410,-372694.01500111,0.00010903,2]
[329460766,1718379036420,-205.66,0.00010959,2]
[329460767,1718379036446,-171.38,0.00010959,2]
[329460768,1718379036462,-856.92,0.00010959,2]
[329460769,1718379036473,-2100.28018929,0.000129,2]
[329460770,1718379036485,-2100.28018922,0.00013168,2]
[329460771,1718379036515,-544.95,0.00014959,2]
[329460772,1718379036536,-769.57,0.00015143,2]
[329460773,1718379036548,-250.0,0.00015159,2]
[329460774,1718379036573,-158.73126334,0.00015205,2]
[329460775,1718379036588,-212.25,0.00015247,2]
[329460776,1718379036598,-200.0,0.00015288,2]
[329460777,1718379036637,-200.0,0.00015405,2]
[329460778,1718379036650,-2100.28018922,0.00015477,2]
[329460779,1718379036669,-329.66155529,0.00015688,2]
[329460780,1718379036696,-500.0,0.00015719,2]
[329460781,1718379036708,-23900.0,0.00015719,2]
[329460782,1718379036719,-627.99,0.00015789,2]
[329460783,1718379036737,-1806.44529912,0.000165,2]
[329460784,1718379036756,-329.66155526,0.00017178,2]
[329460785,1718379036768,-694.13,0.00017289,2]
[329460786,1718379036779,-2100.28018922,0.00017786,2]
[329460787,1718379036802,-649.53295488,0.00018,2]
[329460788,1718379036820,-1000.0,0.00018219,2]
[329460789,1718379036836,-329.66155526,0.00018668,2]
[329460790,1718379036849,-2738.0,0.000193,2]
[329460791,1718379036862,-176.28146655,0.00019451,2]
[329460792,1718379036884,-694.13,0.00019553,2]
[329460793,1718379036895,-158.73126334,0.00019607,2]
[329460794,1718379036906,-2200.0,0.00019646,2]
[329460795,1718379036925,-250.0,0.0001982,2]
[329460796,1718379036936,-800.0,0.00019996,2]
[329460797,1718379036950,-3892.44824461,0.0002,2]
[329460798,1718379036965,-1275.71521208,0.0002,2]
[329460799,1718379036982,-1781.32992675,0.0002,2]
[329460800,1718379036995,-3042.32710168,0.0002,2]
[329460801,1718379037007,-150.0,0.00020035,2]
[329460802,1718379037034,-7600.0,0.0002009,2]
[329460803,1718379037047,-2100.28018922,0.00020096,2]
[329460804,1718379037078,-226.78109354,0.000201,2]
[329460805,1718379037093,-329.66155526,0.00020159,2]
[329460806,1718379037110,-549.43,0.00020684,2]
[329460807,1718379037140,-19719.65764171,0.000207,2]
[329460808,1718379037161,-171.27,0.00020705,2]
[329460809,1718379037188,-156.94,0.00020743,2]
[329460810,1718379037203,-168.39,0.00020836,2]
[329460811,1718379037217,-1166.0,0.000209,5]
[329460812,1718379037231,-1250.0,0.00021,2]
[329460813,1718379037270,-201.799218,0.00021,2]
[329460814,1718379037285,-212.25,0.00021345,2]
[329460815,1718379037297,-585.10738605,0.00021609,2]
[329460816,1718379037319,-329.66155526,0.00021649,2]
[329460817,1718379037338,-289.39,0.00021813,2]
[329460818,1718379037356,-694.13,0.00021817,2]
[329460819,1718379037390,-796.0,0.000219,2]
[329460820,1718379037402,-164.67,0.00021918,2]
[329460821,1718379037416,-691.87,0.00021918,2]
[329460822,1718379037426,-250.0,0.00021918,2]
[329460823,1718379037445,-791.01559774,0.00022,2]
[329460824,1718379037464,-2200.0,0.00022386,2]
[329460825,1718379037475,-2100.28018922,0.00022405,2]
[329460826,1718379037519,-800.0,0.00022496,2]
[329460827,1718379037530,-500.0,0.00022602,2]
[329460828,1718379037572,-600.0,0.00022602,2]
[329460829,1718379037585,-800.0,0.00022877,2]
[329460830,1718379037609,-5000.0,0.00023,2]
[329460831,1718379037644,-155.0,0.00023,2]
[329460832,1718379037668,-1300.0,0.00023,2]
[329460833,1718379037687,-200.0,0.00023,2]
[329460834,1718379037699,-3664.346,0.00023009,2]
[329460835,1718379037727,-329.66155526,0.00023139,2]
[329460836,1718379037741,-600.0,0.0002315,2]
[329460837,1718379037756,-9146.0,0.00023175,2]
[329460838,1718379037774,-12431.0,0.00023195,2]
[329460839,1718379037844,-150.0,0.00023262,2]
[329460840,1718379037859,-549.43,0.00023269,2]
[329460841,1718379037889,-1500.0,0.00023328,2]
[329460842,1718379037908,-1500.0,0.00023374,2]
[329460843,1718379037919,-500.0,0.00023575,2]
[329460844,1718379037934,-418.51191286,0.00023575,2]
[329460845,1718379037951,-181.19632456,0.00023575,2]
[329460846,1718379037969,-500.0,0.00023575,2]
[329460847,1718379038001,-500.0,0.00023575,2]
[329460848,1718379038014,-500.0,0.00023575,2]
[329460849,1718379038025,-500.0,0.00023575,2]
[329460850,1718379038038,-500.0,0.00023575,2]
[329460851,1718379038050,-419.73686249,0.00023575,2]
[329460852,1718379038063,-500.0,0.00023575,2]
[329460853,1718379038090,-53621.7558558,0.00023576,7]
[329460854,1718379038120,-800.0,0.000236,8]
[329460855,1718379038131,-500.0,0.00023698,2]
[329460856,1718379038149,-600.0,0.00023698,2]
[329460857,1718379038160,-1700.0,0.000237,8]
[329460858,1718379038171,-150.0,0.00023739,2]
[329460859,1718379038184,-155.0,0.000238,2]
[329460860,1718379038195,-2500.0,0.000238,8]
[329460861,1718379038206,-150.0,0.00023849,2]
[329460862,1718379038224,-1164.65,0.0002389,2]
[329460863,1718379038235,-835.38,0.0002389,2]
[329460864,1718379038266,-194.0563715,0.00023896,2]
[329460865,1718379038284,-3400.0,0.000239,8]
[329460866,1718379038315,-150.0,0.00023928,2]
[329460867,1718379038345,-300.0,0.0002394,2]
[329460868,1718379038363,-176.98889232,0.00023942,2]
[329460869,1718379038376,-6811.28521864,0.00023942,2]
[329460870,1718379038389,-174.3871995,0.00023942,2]
[329460871,1718379038408,-190.14963247,0.00023948,2]
[329460872,1718379038435,-207.68820243,0.00023956,2]
[329460873,1718379038449,-207.68820243,0.0002396,2]
[329460874,1718379038461,-169.95723611,0.00023971,2]
[329460875,1718379038473,-1500.0,0.00023974,2]
[329460876,1718379038497,-41124.59807909,0.00023981,2]
[329460925,1718379042939,-2376.88871327,0.00023981,2]
[329460926,1718379042980,-4852.6012,0.00023981,2]
[329460927,1718379043049,-15215.26684458,0.00023981,2]
[329460928,1718379043091,-877.61764007,0.00023981,2]
[329460929,1718379043592,-92047.31023024,0.00023981,2]
[329460930,1718379043606,-207.68820243,0.00023996,2]
[329460931,1718379043636,-150.0,0.00023998,2]
[329460932,1718379043661,-312.06488343,0.00024,10]
[329460933,1718379043684,-207.68820243,0.00024001,2]
[329460934,1718379043710,-153.51553158,0.00024002,2]
[329460935,1718379043721,-158.73126334,0.00024009,2]
[329460936,1718379043732,-7500.0,0.00024009,2]
[329460937,1718379043802,-153.51380811,0.00024015,2]
[329460938,1718379043849,-151.48,0.00024027,2]
[329460939,1718379043862,-156494.28270725,0.00024037,2]
[329460940,1718379043894,-151.48,0.0002404,2]
[329460941,1718379043911,-156494.28270725,0.00024042,2]
[329460942,1718379043921,-350.20932157,0.00024042,2]
[329460943,1718379043948,-28326.99991408,0.00024042,2]
[329460944,1718379043983,-158.41736137,0.00024043,2]
[329460945,1718379044017,-500.0,0.00024049,2]
[329460946,1718379044029,-393.4673838,0.00024049,2]
[329460947,1718379044046,-352.98082235,0.00024049,2]
[329460948,1718379044070,-156494.28270725,0.0002405,2]
[329460949,1718379044104,-152.12285156,0.00024057,2]
[329460950,1718379044140,-207.68820243,0.00024058,2]
[329460951,1718379044191,-156494.28270725,0.00024077,2]
[329460953,1718379044288,-694.13,0.00024081,2]
[329460954,1718379044300,-152.82260606,0.00024085,2]
[329460955,1718379044328,-156494.28270725,0.00024093,2]
[329460956,1718379044342,-207.68820243,0.00024094,2]
[329460957,1718379044418,-151.48,0.00024099,2]
[329460958,1718379044464,-2058.7735572,0.000241,2]
[329460959,1718379044485,-198.8,0.00024104,2]
[329460960,1718379044636,-422.2579025,0.00024109,3]
[329460961,1718379044683,-500.0,0.00024109,3]
[329460962,1718379044701,-500.0,0.00024109,3]
[329460963,1718379044730,-500.0,0.00024109,3]
[329460964,1718379044833,-159.43004781,0.00024109,3]
[329460965,1718379044846,-222.48439484,0.00024109,3]
[329460966,1718379044906,-500.0,0.00024109,3]
[329460967,1718379044955,-500.0,0.00024109,3]
[329460968,1718379045000,-523.48822949,0.00024109,3]
[329460969,1718379045102,-500.0,0.00024109,3]
[329460970,1718379045144,-500.0,0.00024109,3]
[329460971,1718379045176,-500.0,0.00024109,3]
[329460972,1718379045214,-500.0,0.00024109,3]
[329460973,1718379045240,-500.0,0.00024109,3]
[329460976,1718379045262,-557.2597746,0.00024109,3]
[329460977,1718379045281,-551.98876894,0.00024109,3]
[329460978,1718379045305,-589.17731701,0.00024109,3]
[329460980,1718379045324,-221.55090503,0.00024109,3]
[329460983,1718379045336,-500.0,0.00024109,3]
[329460984,1718379045349,-237.57288494,0.00024109,3]
[329460986,1718379045361,-500.0,0.00024109,3]
[329460988,1718379045382,-500.0,0.00024109,3]
[329460989,1718379045398,-500.0,0.00024109,3]
[329460990,1718379045435,-507.14615604,0.00024109,3]
[329460991,1718379045461,-500.0,0.00024109,3]
[329460992,1718379045480,-506.29478735,0.00024109,3]
[329460993,1718379045517,-500.0,0.00024109,3]
[329460994,1718379045535,-500.0,0.00024109,3]
[329460995,1718379045566,-240.13538056,0.00024109,3]
[329460996,1718379045586,-500.0,0.00024109,3]
[329460997,1718379045600,-500.0,0.00024109,3]
[329460998,1718379045628,-513.61430199,0.00024109,3]
[329460999,1718379045648,-500.0,0.00024109,3]
[329461000,1718379045663,-500.0,0.00024109,3]
[329461001,1718379045676,-506.89760752,0.00024109,3]
[329461002,1718379045709,-500.0,0.00024109,3]
[329461003,1718379045740,-500.0,0.00024109,3]
[329461004,1718379045785,-500.0,0.00024109,3]
[329461005,1718379045805,-500.0,0.00024109,3]
[329461006,1718379045819,-500.0,0.00024109,3]
[329461007,1718379045879,-500.0,0.00024109,2]
[329461008,1718379045945,-500.0,0.00024109,3]
[329461009,1718379045957,-500.0,0.00024109,3]
[329461010,1718379045969,-500.0,0.00024109,3]
[329461011,1718379046068,-500.0,0.00024109,3]
[329461012,1718379046124,-500.0,0.00024109,3]
[329461013,1718379046137,-500.0,0.00024109,3]
[329461014,1718379046174,-500.0,0.00024109,3]
[329461015,1718379046196,-500.0,0.00024109,3]
[329461016,1718379046258,-500.0,0.00024109,3]
[329461017,1718379046288,-571.29407362,0.00024109,3]
[329461018,1718379046299,-500.0,0.00024109,3]
[329461019,1718379046320,-500.0,0.00024109,3]
[329461020,1718379046332,-509.08460724,0.00024109,3]
[329461021,1718379046343,-500.0,0.00024109,3]
[329461022,1718379046357,-500.0,0.00024109,3]
[329461024,1718379046369,-504.89274069,0.00024109,3]
[329461025,1718379046382,-500.0,0.00024109,3]
[329461028,1718379046405,-500.0,0.00024109,3]
[329461029,1718379046418,-286.64259174,0.00024109,3]
[329461030,1718379046430,-500.0,0.00024109,3]
[329461031,1718379046453,-500.0,0.00024109,3]
[329461032,1718379046464,-500.0,0.00024109,3]
[329461033,1718379046474,-500.0,0.00024109,3]
[329461034,1718379046489,-500.0,0.00024109,3]
[329461035,1718379046506,-522.25436774,0.00024109,3]
[329461036,1718379046535,-522.78503904,0.00024109,3]
[329461037,1718379046557,-500.0,0.00024109,3]
[329461038,1718379046572,-500.0,0.00024109,3]
[329461039,1718379046595,-500.0,0.00024109,3]
[329461040,1718379046619,-500.0,0.00024109,3]
[329461041,1718379046631,-500.0,0.00024109,3]
[329461042,1718379046663,-500.0,0.00024109,3]
[329461043,1718379046700,-500.0,0.00024109,3]
[329461044,1718379046718,-500.0,0.00024109,3]
[329461045,1718379046751,-500.0,0.00024109,3]
[329461046,1718379046777,-1116.23,0.00024109,3]
[329461047,1718379046791,-500.0,0.00024109,3]
[329461048,1718379046816,-500.0,0.00024109,3]
[329461049,1718379046851,-500.0,0.00024109,3]
[329461050,1718379046868,-500.0,0.00024109,3]
[329461051,1718379046889,-511.34347698,0.00024109,3]
[329461052,1718379046901,-500.0,0.00024109,3]
[329461053,1718379046913,-500.0,0.00024109,3]
[329461054,1718379046925,-500.0,0.00024109,2]
[329461055,1718379046938,-500.0,0.00024109,3]
[329461056,1718379046949,-500.0,0.00024109,3]
[329461057,1718379046960,-500.0,0.00024109,3]
[329461058,1718379046982,-500.0,0.00024109,3]
[329461059,1718379046997,-500.0,0.00024109,3]
[329461060,1718379047008,-500.0,0.00024109,3]
[329461061,1718379047066,-500.0,0.00024109,3]
[329461062,1718379047096,-551.18879589,0.00024109,3]
[329461063,1718379047136,-500.0,0.00024109,3]
[329461064,1718379047148,-500.0,0.00024109,3]
[329461065,1718379047183,-500.0,0.00024109,3]
[329461066,1718379047217,-419.76009324,0.00024109,3]
[329461067,1718379047231,-500.0,0.00024109,3]
[329461068,1718379047243,-500.0,0.00024109,3]
[329461069,1718379047258,-543.45251915,0.00024109,3]
[329461070,1718379047275,-543.16103954,0.00024109,3]
[329461071,1718379047287,-566.09907088,0.00024109,3]
[329461072,1718379047316,-500.0,0.00024109,3]